bitfinex-derivatives/quotes_ETHF0:USTF0_20240907
["timestamp","ask_amount","ask_price","bid_price","bid_amount"]
[1725740142340,0.43706,2288.1,2288.0,0.43707]
[1725740143840,4.41125,2288.2,2288.0,0.43707]
[1725740144334,4.02385,2288.2,2288.1,0.43706]
[1725740144530,0.43703,2288.3,2288.2,0.43704]
[1725740144731,1.26,2288.3,2288.2,0.43704]
[1725740144947,5.28718,2288.5,2288.3,0.43701]
[1725740145237,5.28718,2288.5,2288.4,0.3725]
[1725740145438,5.50268913,2288.5,2288.4,0.3725]
[1725740146237,5.06570913,2288.5,2288.2,1.19294]
[1725740146439,1.26,2288.3,2288.2,1.19294]
[1725740147637,0.43704,2288.2,2288.1,0.374]
[1725740147945,4.01294,2288.2,2288.1,0.374]
[1725740149640,4.01294,2288.2,2288.1,0.4205]
[1725740151435,4.01294,2288.2,2288.1,0.0465]
[1725740154046,4.01294,2288.2,2288.1,0.48356]
[1725740154646,4.01294,2288.2,2288.1,0.0465]
[1725740156048,0.80514,2288.2,2288.1,0.0465]
[1725740163546,1.16254,2288.2,2288.1,0.0465]
[1725740166248,0.43706,2288.1,2288.0,0.3834]
[1725740166447,1.69706,2288.1,2288.0,0.3834]
[1725740168751,4.90486,2288.1,2288.0,0.3834]
[1725740169651,1.69706,2288.1,2288.0,0.3834]
[1725740169948,1.26,2288.1,2288.0,0.82048]
[1725740170752,1.69706,2288.1,2288.0,0.3834]
[1725740171448,4.90486,2288.1,2288.0,0.3834]
[1725740175553,1.69706,2288.1,2288.0,0.3834]
[1725740175756,4.90486,2288.1,2288.0,0.3834]
[1725740176057,1.69706,2288.1,2288.0,0.3834]
[1725740176360,4.90486,2288.1,2288.0,0.3834]
[1725740177951,0.43711,2287.9,2287.7,1.14711018]
[1725740178143,0.43711,2287.9,2287.6,1.1238]
[1725740178144,0.43714,2287.7,2287.6,1.1238]
[1725740178344,1.69714,2287.7,2287.6,1.1238]
[1725740178540,6.06834,2287.7,2287.6,1.1238]
[1725740178754,2.08194,2287.7,2287.6,1.1238]
[1725740179255,1.69714,2287.7,2287.6,1.1238]
[1725740179449,1.26,2287.7,2287.6,1.1238]
[1725740179645,0.43711,2287.9,2287.6,1.1238]
[1725740179849,1.26,2287.8,2287.7,0.43713]
[1725740181260,3.8103887,2288.1,2287.6,1.1238]
[1725740181551,3.8103887,2288.1,2287.8,0.4371]
[1725740181552,1.26,2287.9,2287.8,0.4371]
[1725740183353,1.26,2287.9,2287.8,0.43712]
[1725740184156,1.26,2288.0,2287.9,0.4371]
[1725740194557,3.43028658,2288.3,2288.0,0.43707]
[1725740194856,3.2078,2288.3,2288.2,0.43704]
[1725740195161,0.43704,2288.2,2288.1,0.3711]
[1725740202465,0.43704,2288.2,2288.1,0.7407]
[1725740204055,0.43704,2288.2,2288.1,1.1048]
[1725740208466,0.3673,2288.4,2288.1,1.1048]
[1725740208761,1.26,2288.3,2288.1,1.54185]
[1725740209467,1.69702,2288.3,2288.1,1.54185]
[1725740211863,0.43704,2288.2,2288.1,1.1048]
[1725740212373,3.64484,2288.2,2288.1,0.3696]
[1725740212671,4.03274,2288.2,2288.1,0.3696]
[1725740214366,0.82494,2288.2,2288.1,0.3696]
[1725740214770,4.03274,2288.2,2288.1,0.3696]
[1725740217868,3.64484,2288.2,2288.1,0.3696]
[1725740221073,0.43704,2288.2,2288.1,0.3696]
[1725740222567,1.69703,2288.3,2288.1,0.80666]
[1725740222771,1.69703,2288.3,2288.2,0.3748]
[1725740222978,1.69703,2288.3,2288.2,0.7558]
[1725740223778,4.90483,2288.3,2288.2,0.7558]
[1725740224875,1.69703,2288.3,2288.2,0.7558]
[1725740225579,4.90483,2288.3,2288.2,0.7558]
[1725740228077,3.2078,2288.6,2288.5,0.43698]
[1725740228278,0.7631,2289.1,2288.4,2.40711018]
[1725740228484,1.26,2288.9,2288.7,0.43694]
[1725740228685,1.26,2288.9,2288.8,0.3623]
[1725740228890,1.26,2288.9,2288.8,0.7298]
[1725740231586,4.90471,2288.9,2288.8,0.7298]
[1725740232480,1.26,2288.9,2288.8,0.7298]
[1725740234785,1.26,2288.9,2288.8,1.16673]
[1725740236481,1.26,2288.9,2288.8,0.7298]
[1725740236789,1.69691,2288.9,2288.8,0.7298]
[1725740238684,1.26,2289.0,2288.8,0.7298]
[1725740238906,1.69689,2289.0,2288.9,0.357]
[1725740239490,1.69689,2289.0,2288.9,0.79391]
[1725740239984,1.69689,2289.0,2288.9,0.357]
[1725740240191,0.43691,2288.9,2288.8,0.7298]
[1725740240489,1.69691,2288.9,2288.8,0.7298]
[1725740240796,0.43693,2288.8,2288.6,0.43695]
[1725740241082,0.81203,2288.8,2288.6,0.83135]
[1725740241778,0.81203,2288.8,2288.7,0.3659]
[1725740241974,4.90472,2288.9,2288.7,0.3659]
[1725740242180,5.29162,2288.9,2288.7,0.3659]
[1725740242384,5.29162,2288.9,2288.7,0.80284]
[1725740243287,0.43693,2288.8,2288.7,0.3659]
[1725740244488,5.29162,2288.9,2288.7,0.3659]
[1725740245292,5.29162,2288.9,2288.7,0.80284]
[1725740245590,0.43693,2288.8,2288.7,0.3659]
[1725740246187,0.43695,2288.7,2288.6,0.3944]
[1725740255198,0.43695,2288.7,2288.6,0.83137]
[1725740256390,0.43695,2288.7,2288.6,0.3944]
[1725740257397,0.43695,2288.7,2288.5,0.3812]
[1725740257594,0.43698,2288.5,2288.0,2.6840903]
[1725740257796,0.43712,2287.8,2287.6,3.1212403]
[1725740257995,0.43714,2287.7,2287.6,0.7767]
[1725740258295,0.43718,2287.5,2287.4,0.387]
[1725740258501,1.69718,2287.5,2287.4,0.387]
[1725740258707,1.26,2287.5,2287.4,0.387]
[1725740260307,4.4678,2287.6,2287.4,0.82419]
[1725740260510,3.2078,2287.6,2287.5,0.43718]
[1725740260811,3.2078,2287.6,2287.5,0.81708]
[1725740268725,1.26,2287.7,2287.6,0.43716]
[1725740271617,3.2078,2287.8,2287.7,0.43714]
[1725740281643,3.2078,2287.9,2287.8,0.43711]
[1725740281936,3.6449,2287.9,2287.8,0.43711]
[1725740282138,3.6449,2287.9,2287.7,0.43713]
[1725740283345,3.6449,2287.9,2287.5,0.3799]
[1725740283346,0.43712,2287.8,2287.5,0.3799]
[1725740283540,1.69715,2287.7,2287.6,0.43716]
[1725740283840,2.08245,2287.7,2287.6,0.43716]
[1725740285544,1.6453,2287.7,2287.6,0.43716]
[1725740285943,2.08244,2287.7,2287.6,0.43716]
[1725740286746,1.6453,2287.7,2287.6,0.43716]
[1725740288148,2.08244,2287.7,2287.6,0.43716]
[1725740290445,2.08244,2287.7,2287.5,0.81706]
[1725740291048,2.08244,2287.7,2287.6,0.43716]
[1725740291750,1.6453,2287.7,2287.6,0.43716]
[1725740292753,0.43713,2287.8,2287.7,0.43714]
[1725740293055,4.00491,2287.9,2287.8,0.43712]
[1725740293554,4.00491,2287.9,2287.7,0.43712]
[1725740294250,0.43712,2287.8,2287.7,0.43712]
[1725740294449,4.00491,2287.9,2287.7,0.43712]
[1725740295158,4.00491,2287.9,2287.8,0.43712]
[1725740297447,0.79711,2287.9,2287.8,0.43712]
[1725740297744,4.00491,2287.9,2287.7,0.43712]
[1725740299155,4.00491,2287.9,2287.8,0.43712]
[1725740300557,4.00491,2287.9,2287.8,1.19382]
[1725740301957,4.00491,2287.9,2287.8,0.82012]
[1725740305058,4.00491,2287.9,2287.8,0.383]
[1725740305645,3.2078,2288.2,2287.8,0.82012]
[1725740305850,4.03294,2288.2,2288.0,0.43707]
[1725740306049,0.43706,2288.1,2288.0,0.43707]
[1725740307060,4.03295,2288.2,2288.0,0.43707]
[1725740308049,3.2078,2288.2,2288.1,0.43706]
[1725740308557,3.2078,2288.5,2288.1,4.3704]
[1725740308750,0.81997,2288.6,2288.1,4.3704]
[1725740308751,1.6492,2288.6,2288.5,0.43698]
[1725740309752,3.2078,2288.8,2288.3,1.6501]
[1725740309954,3.2078,2288.8,2288.7,0.43695]
[1725740310548,0.3892,2289.0,2288.8,0.43692]
[1725740310753,1.26,2289.0,2288.9,0.3815]
[1725740310952,1.69689,2289.0,2288.7,0.43695]
[1725740311155,4.4678,2288.8,2288.6,0.43695]
[1725740311366,1.26,2288.7,2288.5,0.3815]
[1725740311760,2.08835,2288.7,2288.5,0.3815]
[1725740312465,4.3696,2288.6,2287.9,1.14711018]
[1725740312767,1.69707,2288.1,2287.8,6.33708183]
[1725740313261,2.46737,2288.1,2287.8,6.33708183]
[1725740313451,2.46737,2288.1,2287.8,6.77419183]
[1725740314354,2.0303,2288.1,2287.8,6.77419183]
[1725740314756,2.46736,2288.1,2287.8,6.77419183]
[1725740315861,2.0303,2288.1,2287.8,6.77419183]
[1725740316068,0.7703,2288.1,2287.8,6.77419183]
[1725740316365,0.7703,2288.1,2287.9,0.4371]
[1725740316553,0.7703,2288.1,2287.8,6.77419183]
[1725740317358,0.7703,2288.1,2287.9,0.4371]
[1725740320072,1.20737,2288.1,2287.9,0.4371]
[1725740326173,0.43708,2288.0,2287.9,0.4371]
[1725740326562,1.20737,2288.1,2287.9,0.4371]
[1725740327875,0.3914,2288.1,2288.0,0.43708]
[1725740328077,3.64485,2288.2,2288.0,0.43708]
[1725740328280,3.64485,2288.2,2288.1,0.388]
[1725740328466,3.64485,2288.2,2288.1,0.7764]
[1725740329176,0.43707,2288.1,2287.9,0.43709]
[1725740329870,0.43708,2288.0,2287.9,0.43709]
[1725740330076,0.43707,2288.1,2287.9,0.43709]
[1725740330779,0.43708,2288.0,2287.9,0.43709]
[1725740331076,0.43707,2288.1,2287.9,0.43709]
[1725740336478,3.64487,2288.1,2287.9,0.43709]
[1725740336698,0.3727,2288.0,2287.9,0.43709]
[1725740336870,0.80978,2288.0,2287.9,0.43709]
[1725740338078,2.06978,2288.0,2287.9,0.43709]
[1725740338370,3.2078,2288.1,2288.0,0.43708]
[1725740339278,1.69705,2288.2,2288.1,0.43706]
[1725740339480,4.90485,2288.2,2288.1,0.43706]
[1725740340082,4.4678,2288.2,2288.1,0.43706]
[1725740340780,4.90484,2288.2,2288.0,0.43707]
[1725740340982,4.90484,2288.2,2288.1,1.132]
[1725740342481,4.4678,2288.2,2288.1,1.56906]
[1725740342778,4.4678,2288.2,2288.1,1.132]
[1725740342779,4.90484,2288.2,2288.1,1.132]
[1725740344578,0.43709,2288.0,2287.5,2.24003018]
[1725740344780,1.69709,2288.0,2287.7,0.3859]
[1725740345486,1.26,2288.0,2287.9,0.4371]
[1725740346179,0.83057,2288.1,2287.9,0.4371]
[1725740346483,0.83057,2288.1,2288.0,0.388]
[1725740346684,0.43707,2288.1,2288.0,0.7449]
[1725740346881,4.4678,2288.2,2288.0,0.7449]
[1725740347082,3.64484,2288.2,2288.1,0.80786]
[1725740347381,3.64484,2288.2,2288.1,0.3708]
[1725740349587,3.2078,2288.2,2288.1,0.80786]
[1725740350385,1.26,2288.3,2288.2,0.43704]
[1725740350582,1.26,2288.3,2288.1,0.4173]
[1725740350583,1.69702,2288.3,2288.1,0.85435]
[1725740350777,3.2078,2288.2,2288.1,0.85435]
[1725740359704,2.07511,2288.4,2288.2,0.43703]
[1725740359905,2.07511,2288.4,2288.3,0.3711]
[1725740360306,6.44471,2288.4,2288.3,0.3711]
[1725740363800,1.6381,2288.4,2288.3,0.80812]
[1725740366307,2.0751,2288.4,2288.3,0.3711]
[1725740366817,2.0751,2288.4,2288.3,0.80812]
[1725740367211,1.6381,2288.4,2288.3,0.80812]
[1725740369106,2.0751,2288.4,2288.3,0.80812]
[1725740370219,2.0751,2288.4,2288.3,0.3711]
[1725740374616,1.6381,2288.4,2288.2,0.43704]
[1725740375215,1.6381,2288.4,2288.1,1.17195]
[1725740375216,0.43703,2288.3,2288.1,1.17195]
[1725740375418,3.64483,2288.3,2288.1,1.17195]
[1725740377627,0.43711,2287.9,2287.7,2.6840903]
[1725740377813,0.43711,2287.9,2287.7,1.1447]
[1725740378218,4.90489,2288.0,2287.8,0.43711]
[1725740378822,0.43712,2287.8,2287.7,1.1447]
[1725740379028,1.26,2287.8,2287.3,1.14711018]
[1725740379230,0.81865,2287.7,2287.5,0.3904]
[1725740379735,4.02645,2287.7,2287.5,0.3904]
[1725740380633,0.81865,2287.7,2287.5,0.3904]
[1725740380829,0.2152021,2288.0,2287.5,0.3904]
[1725740381025,0.81861,2287.9,2287.7,0.43712]
[1725740381328,0.43709,2288.0,2287.8,1.57162]
[1725740385134,0.4371,2287.9,2287.8,1.1345]
[1725740385432,0.4371,2288.0,2287.8,1.57162]
[1725740386335,3.6449,2288.0,2287.8,1.57162]
[1725740387535,0.4371,2287.9,2287.8,1.57162]
[1725740388527,0.4371,2287.9,2287.5,2.40711018]
[1725740388528,0.43712,2287.8,2287.6,0.43714]
[1725740388833,0.43712,2287.8,2287.5,0.3622]
[1725740388834,1.53006,2287.6,2287.5,0.3622]
[1725740389331,0.43716,2287.6,2287.5,0.3622]
[1725740390437,0.43719,2287.4,2287.3,0.7483]
[1725740390730,1.69719,2287.4,2287.3,0.7483]
[1725740391136,4.90499,2287.4,2287.3,0.7483]
[1725740392336,1.69719,2287.4,2287.3,0.7483]
[1725740392934,0.43719,2287.4,2287.3,1.18551]
[1725740393232,1.69719,2287.5,2287.3,1.18551]
[1725740393737,0.43719,2287.4,2287.3,0.7483]
[1725740393938,0.43719,2287.4,2287.3,1.18551]
[1725740394238,0.43719,2287.4,2287.3,0.7483]
[1725740400443,0.43719,2287.4,2287.3,1.18551]
[1725740401529,0.43716,2287.6,2287.3,5.1203]
[1725740401736,0.43715,2287.7,2287.6,0.43716]
[1725740402038,0.43715,2287.7,2287.5,0.43717]
[1725740402240,0.43715,2287.7,2287.6,0.3883]
[1725740402542,1.69713,2287.8,2287.6,0.3883]
[1725740402840,1.69713,2287.8,2287.7,0.3656]
[1725740405241,1.09285,2287.7,2287.3,0.43721]
[1725740405438,1.26,2287.4,2287.3,1.18261]
[1725740405638,0.43719,2287.4,2287.3,0.7454]
[1725740405833,1.26,2287.4,2287.0,0.43726]
[1725740406033,1.69725,2287.2,2287.1,0.7454]
[1725740407941,1.69725,2287.2,2287.1,1.18265]
[1725740408642,1.69725,2287.2,2287.1,0.7454]
[1725740409741,1.69725,2287.2,2287.1,1.18265]
[1725740410243,1.69725,2287.2,2287.1,0.7454]
[1725740410547,1.69725,2287.2,2287.1,1.18265]
[1725740411347,1.09314,2287.1,2286.4,0.43738]
[1725740411556,1.09314,2287.1,2286.5,0.7688]
[1725740411557,0.43735,2286.6,2286.5,0.7688]
[1725740411735,1.69735,2286.6,2286.5,0.7688]
[1725740412045,1.26,2286.6,2286.5,0.7688]
[1725740412241,1.69735,2286.6,2286.5,0.7688]
[1725740412542,1.26,2286.6,2286.5,0.7688]
[1725740414137,0.81674,2286.7,2286.5,0.7688]
[1725740414337,0.3794,2286.7,2286.5,1.128]
[1725740414538,0.81674,2286.7,2286.5,1.128]
[1725740415448,0.43735,2286.6,2286.5,1.128]
[1725740418339,0.43739,2286.4,2286.0,1.53698012]
[1725740418640,0.43742,2286.2,2286.1,0.7424]
[1725740418843,0.43744,2286.1,2285.9,4.00857]
[1725740419038,0.80794,2286.1,2285.9,4.00857]
[1725740419239,0.3705,2286.1,2286.0,0.43746]
[1725740419744,0.80794,2286.1,2285.9,4.00857]
[1725740419938,0.3705,2286.1,2286.0,0.43746]
[1725740420641,0.80794,2286.1,2286.0,0.43746]
[1725740421043,0.43746,2286.0,2285.9,3.2078]
[1725740421252,8.48806,2286.0,2285.4,5.18234012]
[1725740421550,0.43754,2285.6,2285.4,3.64537]
[1725740421847,0.43754,2285.6,2285.4,0.43757]
[1725740422448,0.43753,2285.7,2285.5,0.43756]
[1725740423248,3.4117,2285.8,2285.3,1.105]
[1725740423438,0.43753,2285.7,2285.5,0.43755]
[1725740423844,0.43758,2285.4,2285.3,1.105]
[1725740424143,3.02,2285.4,2285.3,1.105]
[1725740424750,3.02,2285.4,2285.3,1.5426]
[1725740424941,3.574,2285.6,2285.4,0.43757]
[1725740424942,3.02,2285.5,2285.4,0.43757]
[1725740430954,3.02,2285.7,2285.6,0.43754]
[1725740431151,3.02,2285.7,2285.0,1.53698012]
[1725740431349,3.02,2285.4,2285.3,0.4376]
[1725740431753,3.4041,2285.6,2285.5,0.43756]
[1725740431948,3.02,2285.6,2285.5,0.43756]
[1725740433458,3.02,2285.6,2285.4,0.7604]
[1725740433459,3.45755,2285.6,2285.4,1.19797]
[1725740433761,3.84165,2285.6,2285.4,1.19797]
[1725740434166,3.45756,2285.5,2285.4,0.7604]
[1725740434368,3.45756,2285.5,2285.4,1.19798]
[1725740434872,3.45756,2285.5,2284.6,0.2238238]
[1725740434873,0.43763,2285.2,2284.6,0.2238238]
[1725740435071,3.02,2285.1,2285.0,0.79615]
[1725740435571,0.3664,2285.4,2285.0,0.79615]
[1725740435572,3.45761,2285.3,2285.0,0.79615]
[1725740435863,3.45761,2285.3,2285.1,0.3651]
[1725740436270,3.4576,2285.3,2285.1,0.3651]
[1725740436772,6.66537,2285.5,2285.2,0.43762]
[1725740436971,6.66537,2285.5,2285.3,0.3781]
[1725740437158,6.66537,2285.5,2285.4,0.3585]
[1725740437975,0.43758,2285.4,2285.3,0.3781]
[1725740438364,6.66537,2285.5,2285.3,0.3781]
[1725740438767,0.43758,2285.4,2285.3,0.3781]
[1725740440173,6.66537,2285.5,2285.3,0.3781]
[1725740440472,3.45752,2285.7,2285.3,0.3781]
[1725740440670,3.45752,2285.7,2285.4,0.43757]
[1725740441067,3.45752,2285.7,2285.5,0.3916]
[1725740441269,3.45752,2285.7,2285.6,0.3873]
[1725740444873,14.48902,2285.7,2284.7,1.53698012]
[1725740445175,14.48902,2285.7,2284.9,0.7444]
[1725740445176,3.02,2285.1,2284.9,0.7444]
[1725740445470,3.02,2285.1,2285.0,0.43765]
[1725740445675,3.02,2285.1,2285.0,0.81645]
[1725740447078,3.02,2285.1,2285.0,0.3788]
[1725740452984,3.02,2285.1,2285.0,0.4253]
[1725740453386,3.45763,2285.1,2285.0,0.0465]
[1725740454075,3.02,2285.1,2285.0,0.0465]
[1725740459786,3.02,2285.1,2285.0,0.48415]
[1725740459990,1.26,2285.1,2285.0,0.48415]
[1725740460581,1.69763,2285.1,2285.0,0.0465]
[1725740461181,1.26,2285.1,2285.0,0.0465]
[1725740461887,1.26,2285.1,2285.0,0.48415]
[1725740463988,3.2078,2285.2,2285.0,0.0465]
[1725740464297,0.3934,2285.6,2285.4,0.43756]
[1725740464298,1.69754,2285.6,2285.4,0.43756]
[1725740464489,1.69754,2285.6,2285.5,0.769]
[1725740464790,1.69754,2285.6,2285.5,1.1603]
[1725740464990,1.26,2285.6,2285.5,1.1603]
[1725740466097,3.46753,2285.7,2285.5,1.1603]
[1725740467481,3.03,2285.7,2285.5,1.59786]
[1725740467685,3.46753,2285.7,2285.5,1.59786]
[1725740468897,3.46753,2285.7,2285.5,1.1603]
[1725740469109,3.46753,2285.7,2285.5,1.59785]
[1725740469287,3.03,2285.7,2285.5,1.59785]
[1725740469600,3.46752,2285.7,2285.5,1.59785]
[1725740473400,3.46752,2285.7,2285.5,1.1603]
[1725740473603,0.43754,2285.6,2285.5,1.1603]
[1725740474101,0.43757,2285.5,2285.3,0.43758]
[1725740474401,3.03,2285.4,2285.3,0.4376]
[1725740476305,3.46758,2285.4,2285.2,1.2144]
[1725740476503,3.03,2285.4,2285.1,0.3842]
[1725740476803,3.03,2285.2,2285.1,0.3842]
[1725740477209,3.03,2285.2,2285.1,4.7602]
[1725740477210,3.46762,2285.2,2285.1,4.7602]
[1725740478803,3.2078,2285.7,2285.1,10.7602]
[1725740479112,3.2078,2285.7,2285.1,1.47825]
[1725740479294,3.2078,2285.7,2285.5,0.43755]
[1725740479495,3.2078,2285.7,2285.6,1.1247]
[1725740479704,3.2078,2285.7,2285.6,1.56224]
[1725740479896,3.2078,2285.7,2285.6,1.1247]
[1725740482607,3.64532,2285.7,2285.6,1.1247]
[1725740483504,3.2078,2285.7,2285.6,1.1247]
[1725740483705,3.2078,2285.7,2285.6,1.56224]
[1725740484106,3.2078,2285.7,2285.6,1.1247]
[1725740484704,3.2078,2285.7,2285.6,1.56224]
[1725740485705,3.64532,2285.7,2285.6,1.1247]
[1725740487201,3.64532,2285.7,2285.6,0.7343]
[1725740490006,4.90532,2285.7,2285.6,0.7343]
[1725740490200,4.4678,2285.7,2285.2,0.3901]
[1725740490508,1.6976,2285.3,2285.2,0.82772]
[1725740491013,1.6976,2285.3,2285.2,4.7661]
[1725740491404,1.6976,2285.3,2285.2,0.3901]
[1725740492005,0.4376,2285.3,2285.2,0.3901]
[1725740492710,6.67539,2285.4,2285.2,0.82772]
[1725740494317,0.4376,2285.3,2285.2,0.3901]
[1725740498011,6.2378,2285.4,2285.1,1.18592]
[1725740498012,0.43762,2285.2,2285.1,0.7483]
[1725740498319,0.3669,2285.2,2285.1,1.18593]
[1725740498518,0.3669,2285.2,2285.1,5.56193]
[1725740499517,0.43761,2285.3,2285.1,5.56193]
[1725740499702,0.43761,2285.3,2285.1,1.18593]
[1725740499903,0.43761,2285.3,2285.2,0.3847]
[1725740500515,7.04229,2285.4,2285.2,0.82232]
[1725740500910,0.4376,2285.3,2285.2,0.3847]
[1725740504021,0.4376,2285.3,2285.2,0.4312]
[1725740505308,0.4376,2285.3,2285.2,0.0465]
[1725740510427,3.6454,2285.3,2285.2,0.0465]
[1725740513529,9.1154,2285.3,2285.2,0.0465]
[1725740513725,16.2094,2285.3,2285.2,1e-05]
[1725740513926,0.43775,2284.5,2284.4,0.3661]
[1725740514127,0.43775,2284.5,2284.0,1.97482012]
[1725740514128,0.4378,2284.3,2284.0,1.97482012]
[1725740514327,1.26,2284.1,2284.0,2.70672012]
[1725740514920,0.3699,2284.4,2284.1,0.43782]
[1725740514921,1.26,2284.3,2284.1,0.43782]
[1725740515114,0.43772,2284.7,2284.4,0.43776]
[1725740515321,0.43772,2284.7,2284.0,4.62347012]
[1725740515322,1.69772,2284.7,2284.5,1.55625]
[1725740515518,1.26,2284.7,2284.0,2.683528]
[1725740515724,1.26,2284.2,2284.1,0.43783]
[1725740515920,1.26,2284.3,2284.2,0.4378]
[1725740519724,1.26,2284.5,2284.2,4.3776]
[1725740520029,1.26,2284.5,2284.3,0.43779]
[1725740520429,1.26,2284.5,2284.4,0.82807]
[1725740520628,1.69775,2284.5,2284.4,0.3903]
[1725740521323,1.26,2284.5,2284.4,0.3903]
[1725740521525,1.69775,2284.5,2284.4,0.3903]
[1725740523229,1.26,2284.5,2284.4,0.82807]
[1725740525437,1.69775,2284.5,2284.4,0.3903]
[1725740525632,1.624,2284.5,2284.1,0.7527]
[1725740525826,1.26,2284.4,2284.3,0.43779]
[1725740526027,1.69777,2284.4,2284.2,0.82049]
[1725740526832,1.69777,2284.4,2284.3,0.43779]
[1725740527041,1.69777,2284.4,2284.2,0.82049]
[1725740527837,1.26,2284.4,2284.2,0.3827]
[1725740528132,0.43779,2284.3,2284.2,0.3827]
[1725740528439,0.43781,2284.2,2284.1,0.43783]
[1725740528736,2.08781,2284.2,2284.1,0.43783]
[1725740529037,1.26,2284.2,2284.1,0.43783]
[1725740530033,4.4678,2284.3,2283.9,1.1063]
[1725740530220,1.6978,2284.3,2283.9,1.1063]
[1725740530629,1.26,2284.2,2284.0,0.43785]
[1725740531036,0.82778,2284.4,2284.2,0.43781]
[1725740531229,0.82778,2284.4,2283.9,1.1063]
[1725740531230,1.26,2284.3,2283.9,1.1063]
[1725740531833,1.26,2284.3,2284.2,0.4378]
[1725740534932,3.2078,2284.9,2284.2,4.3776]
[1725740535126,4.132,2285.6,2284.6,1.26]
[1725740535127,4.8488,2285.2,2284.6,1.26]
[1725740535332,1.26,2285.0,2284.8,0.43768]
[1725740535636,1.69766,2285.0,2284.8,0.43768]
[1725740535839,1.26,2284.9,2284.8,0.43768]
[1725740536039,1.69768,2284.9,2284.7,1.54741]
[1725740536239,2.07868,2284.9,2284.7,1.54741]
[1725740536431,0.43769,2284.8,2284.7,1.1097]
[1725740536633,0.43772,2284.7,2284.3,1.53698012]
[1725740536831,1.69773,2284.6,2284.4,1.54745]
[1725740537231,1.26,2284.6,2284.5,0.43775]
[1725740539140,1.26,2284.6,2284.4,1.1097]
[1725740539438,2.05504,2284.6,2284.4,1.54746]
[1725740539646,1.6173,2284.6,2284.5,0.43775]
[1725740539842,4.8251,2284.6,2284.4,0.7243]
[1725740540040,0.43775,2284.5,2284.4,0.7243]
[1725740540235,0.43775,2284.5,2284.2,0.8078]
[1725740540436,1.26,2284.4,2284.2,0.8078]
[1725740540841,1.6528,2284.3,2284.2,0.37]
[1725740541138,1.6528,2284.3,2284.2,0.80781]
[1725740542447,2.09059,2284.3,2284.2,0.37]
[1725740542642,2.09059,2284.3,2284.1,1.18061]
[1725740543146,5.29839,2284.3,2284.1,1.18061]
[1725740544345,0.43781,2284.2,2284.1,0.7428]
[1725740544545,5.2984,2284.3,2284.1,0.43783]
[1725740545045,0.43781,2284.2,2284.0,0.82154]
[1725740545249,5.2984,2284.3,2284.1,0.43783]
[1725740545548,5.2984,2284.3,2283.8,0.7567]
[1725740545549,4.8606,2284.3,2283.8,0.7567]
[1725740545752,1.26,2284.2,2284.1,0.43782]
[1725740550352,4.0384,2284.3,2284.2,0.43781]
[1725740550353,5.2984,2284.3,2284.2,0.43781]
[1725740550554,4.8606,2284.3,2284.2,0.43781]
[1725740550752,1.6528,2284.3,2284.2,0.43781]
[1725740551054,2.09059,2284.3,2284.2,0.43781]
[1725740551250,0.43781,2284.2,2283.9,0.3677]
[1725740551554,2.0906,2284.3,2284.1,0.43782]
[1725740551951,1.26,2284.2,2284.1,0.43782]
[1725740554253,1.69781,2284.2,2284.1,0.43782]
[1725740554641,1.26,2284.2,2284.1,0.43782]
[1725740560648,1.69781,2284.2,2284.1,0.43782]
[1725740561658,1.26,2284.2,2284.1,0.43782]
[1725740563254,1.69781,2284.2,2284.1,0.43782]
[1725740566059,1.26,2284.2,2284.1,0.43782]
[1725740568150,1.69781,2284.2,2284.1,0.43782]
[1725740568554,1.26,2284.2,2284.1,0.43782]
[1725740573672,3.2078,2284.6,2284.5,0.43775]
[1725740573869,0.43769,2284.8,2284.7,0.43771]
[1725740574069,0.43771,2284.7,2284.5,0.43774]
[1725740574270,1.69773,2284.6,2284.5,0.365]
[1725740574471,0.43776,2284.5,2284.3,0.43778]
[1725740574670,0.43776,2284.5,2284.4,0.43777]
[1725740574975,1.69776,2284.5,2284.4,0.43777]
[1725740575464,1.26,2284.5,2284.4,0.43777]
[1725740581369,1.69775,2284.5,2284.4,0.43777]
[1725740581574,1.69775,2284.5,2284.3,0.365]
[1725740581575,1.69775,2284.5,2284.3,0.80277]
[1725740581873,1.69775,2284.5,2284.4,0.43777]
[1725740582368,1.69775,2284.5,2284.3,0.80277]
[1725740583066,1.69775,2284.5,2284.4,0.43777]
[1725740584565,1.69775,2284.5,2284.3,0.43778]
[1725740584770,2.05965,2284.5,2284.3,0.43778]
[1725740585871,7.5854,2284.4,2284.2,0.3861]
[1725740586076,1.69779,2284.3,2284.2,0.43781]
[1725740586277,0.43781,2284.2,2284.1,0.79542]
[1725740587470,2.0743,2284.3,2284.1,0.79542]
[1725740590074,2.0743,2284.3,2284.1,0.79543]
[1725740590075,1.6365,2284.3,2284.1,0.79543]
[1725740590973,2.0743,2284.3,2284.1,0.79543]
[1725740592284,1.6365,2284.3,2284.1,0.79543]
[1725740592477,2.0743,2284.3,2284.1,0.79543]
[1725740599989,2.0743,2284.3,2284.1,0.84193]
[1725740600787,1.6365,2284.3,2284.1,0.84193]
[1725740600980,2.0743,2284.3,2284.1,0.84193]
[1725740602792,0.4378,2284.3,2284.2,0.43781]